[Event "FRA-chT Top 12"]
[Site "Brest"]
[Date "2019.05.25"]
[Round "8.8"]
[White "Libiszewski, Fabien"]
[Black "Sebag, Marie"]
[Result "1-0"]
[ECO "B23"]
[WhiteElo "2511"]
[BlackElo "2476"]
[Annotator "Mueller,Karsten"]
[PlyCount "105"]
[EventDate "2019.05.18"]
[EventType "team-tourn"]
[EventRounds "11"]
[EventCountry "FRA"]
[SourceTitle "CBM 191"]
[Source "ChessBase"]
[SourceDate "2019.08.31"]
[SourceVersion "1"]
[SourceVersionDate "2019.08.31"]
[SourceQuality "1"]
[WhiteTeam "Clichy 92"]
[BlackTeam "Bischwiller"]
[WhiteTeamCountry "FRA"]
[BlackTeamCountry "FRA"]
[TimeControl "40/5400+30:1800+30"]

1. e4 {[%emt 0:00:12]} c5 {[%emt 0:00:00]} 2. Nc3 {[%emt 0:00:09]} a6 {[%emt 0:
00:02]} 3. g3 {[%emt 0:00:20]} b5 {[%emt 0:04:51]} 4. Bg2 {[%emt 0:00:41]} Bb7
{[%emt 0:00:39]} 5. Nh3 {[%emt 0:01:08]} (5. d3) 5... e6 {[%emt 0:07:13]} 6.
O-O {[%emt 0:03:41]} Qc7 {[%emt 0:06:35]} 7. d3 {[%emt 0:06:57]} Nf6 {[%emt 0:
05:04]} 8. f4 {[%emt 0:01:08]} d6 {[%emt 0:09:02]} 9. e5 {[%emt 0:28:19]} Bxg2
{[%emt 0:18:19]} 10. Kxg2 {[%emt 0:00:14]} Qc6+ {[%emt 0:14:13]} 11. Kg1 {
[%emt 0:01:39]} Nfd7 {[%emt 0:11:39]} 12. exd6 {[%emt 0:12:14]} Nf6 {[%emt 0:
00:33]} 13. a4 {[%emt 0:12:34]} b4 {[%emt 0:00:44]} 14. Ne4 {[%emt 0:00:12]}
Nxe4 {[%emt 0:05:10]} 15. dxe4 {[%emt 0:00:05]} Bxd6 {[%emt 0:01:13]} 16. Qe2 {
[%emt 0:12:23]} O-O {[%emt 0:01:39]} 17. Rd1 {[%emt 0:00:09]} c4 {[%emt 0:01:
00]} 18. Be3 {[%emt 0:01:09]} Nd7 {[%emt 0:05:10]} 19. Nf2 {[%emt 0:00:09]} Be7
{[%emt 0:01:05]} 20. Rd4 {[%emt 0:04:32]} Rac8 {[%emt 0:00:24]} 21. Rad1 {
[%emt 0:00:51]} Nf6 {[%emt 0:01:37]} 22. g4 {[%emt 0:07:23]} Rfd8 {[%emt 0:01:
27]} 23. g5 {[%emt 0:01:03]} Ne8 {[%emt 0:00:24]} 24. b3 {[%emt 0:00:22]} Rxd4
{[%emt 0:00:52]} 25. Rxd4 {[%emt 0:00:48]} cxb3 {[%emt 0:00:43]} 26. cxb3 {
[%emt 0:00:04]} Rd8 {[%emt 0:00:51]} 27. Rc4 {[%emt 0:01:37]} Qd7 {[%emt 0:00:
10]} 28. Qc2 {[%emt 0:00:35]} g6 {[%emt 0:00:53]} 29. Kg2 {[%emt 0:01:37]} Bf8
{[%emt 0:01:28]} 30. Bb6 {[%emt 0:00:38]} Rb8 {[%emt 0:00:11]} 31. Bd4 {
[%emt 0:00:09]} Nd6 {[%emt 0:01:05]} 32. Ng4 {[%emt 0:01:32]} Be7 {[%emt 0:00:
52]} 33. Rc7 {[%emt 0:00:47]} Rc8 {[%emt 0:00:19]} 34. Rxd7 {[%emt 0:00:22]}
Rxc2+ {[%emt 0:00:04]} 35. Kf3 {[%emt 0:00:08]} Kf8 {[%emt 0:00:53]} 36. Bf6 {
[%emt 0:01:15]} Nc8 {[%emt 0:00:52]} 37. Bxe7+ {[%emt 0:00:43]} Nxe7 {[%emt 0:
00:01]} 38. Rd8+ {[%emt 0:00:11]} Kg7 {[%emt 0:00:02]} 39. Nf6 {[%emt 0:00:08]}
Rc8 {[%emt 0:01:29]} 40. Rxc8 {[%emt 0:01:04]} Nxc8 {[%emt 0:00:04]} 41. Ke3 {
[%emt 0:30:11] Invasion by the white king will decide matters: Das Eindringen
des weißen Königs wird die Partie entscheiden.} e5 {[%emt 0:30:55]} (41...
Nd6 42. Kd4 Nb7 43. Kc4 $18) 42. fxe5 {[%emt 0:00:00]} Ne7 {[%emt 0:00:00]} 43.
Kd4 {[%emt 0:00:00]} Nc6+ {[%emt 0:00:00]} 44. Kd5 {[%emt 0:00:00]} Na5 {
[%emt 0:00:00]} 45. Kc5 {[%emt 0:00:00]} Nxb3+ {[%emt 0:00:00]} 46. Kxb4 {
[%emt 0:00:00]} Nd4 {[%emt 0:00:00]} 47. Ka5 {[%emt 0:00:00]} Kf8 {[%emt 0:00:
00]} 48. Kxa6 {[%emt 0:00:00]} Ke7 {[%emt 0:00:00]} 49. a5 {[%emt 0:00:00]} Kd8
{[%emt 0:00:00]} 50. Kb7 {[%emt 0:00:00]} Nb3 {[%emt 0:00:00]} 51. a6 {[%emt 0:
00:00]} Nc5+ {[%emt 0:00:00]} 52. Kb6 {[%emt 0:00:00]} Na4+ {[%emt 0:00:00]}
53. Kc6 {[%emt 0:00:00] Safe from an immediate knight check.
Springerschachschatten} 1-0

[Event "FRA-chT Top 12"]
[Site "Brest"]
[Date "2019.05.27"]
[Round "10.1"]
[White "Fedorov, Alexei"]
[Black "Nihal, Sarin"]
[Result "1/2-1/2"]
[ECO "B23"]
[WhiteElo "2566"]
[BlackElo "2598"]
[Annotator "Nihal,Sarin"]
[PlyCount "42"]
[EventDate "2019.05.18"]
[EventType "team-tourn"]
[EventRounds "11"]
[EventCountry "FRA"]
[SourceTitle "CBM 190 Extra"]
[Source "ChessBase"]
[SourceDate "2019.07.15"]
[SourceVersion "1"]
[SourceVersionDate "2019.07.15"]
[SourceQuality "1"]
[WhiteTeam "Gonfreville l'Orcher"]
[BlackTeam "Mulhouse"]
[WhiteTeamCountry "FRA"]
[BlackTeamCountry "FRA"]
[TimeControl "40/5400+30:1800+30"]

1. e4 {[%emt 0:00:00]} c5 {[%emt 0:00:00] Had to work hard to save a worse
position today} 2. Ne2 {[%emt 0:01:42]} Nc6 {[%emt 0:01:18]} 3. Nbc3 {[%emt 0:
00:30]} Nf6 {[%emt 0:01:55]} 4. g3 {[%emt 0:00:28]} d5 {[%emt 0:03:45]} 5. exd5
{[%emt 0:00:56]} Nxd5 {[%emt 0:00:09]} 6. Bg2 {[%emt 0:00:18]} Nxc3 {[%emt 0:
00:47]} 7. Nxc3 {[%emt 0:01:14]} h5 {[%emt 0:24:53]} (7... e6 8. O-O Be7 9. d3
Nd4 10. Ne4 Bd7 11. c3 Nf5 12. Qh5 O-O 13. Rd1 g6 14. Qe2 Bc6 15. h4 h5 16. Bf4
Qd7 17. Rd2 Rad8 18. Rad1 Bd5 19. b3 b6 20. Ng5 Bf6 21. Be5 Be7 22. Bf4 Rfe8
23. Ne4 f6 24. d4 cxd4 25. cxd4 Qb7 26. Kh2 Kf7 27. f3 Rd7 28. Qf2 Red8 29. Nc3
Bb4 30. Rd3 Bc6 31. g4 Nxd4 32. Rxd4 Rxd4 33. Rxd4 Bc5 34. Be3 Bxd4 35. Bxd4 e5
36. Bxe5 fxe5 37. gxh5 {Li,R (2574)-Stukopin,A (2586) Saint Louis 2017 1/2-1/2}
) 8. d3 {[%emt 0:11:37]} Bg4 {[%emt 0:20:07]} 9. Bxc6+ {[%emt 0:03:28]} bxc6 {
[%emt 0:03:12]} 10. f3 {[%emt 0:00:07]} Bf5 $146 {[%emt 0:04:32]} (10... Be6
11. b3 g6 12. Bb2 Bg7 13. Na4 Bxb2 14. Nxb2 Qd4 15. Na4 Bd5 16. c3 Qe3+ 17. Qe2
Qxf3 18. Qxf3 Bxf3 19. Rf1 Bg4 20. Nxc5 h4 21. Kf2 hxg3+ 22. Kxg3 Bf5 23. h4
Rd8 24. d4 Rd5 25. Rae1 Bc8 26. Re5 Rxe5 27. dxe5 Rh5 28. Re1 Kf8 29. b4 g5 30.
hxg5 Rh3+ 31. Kf4 Rxc3 32. Re3 Rc4+ 33. Re4 Rc2 34. Rd4 Kg7 35. a3 a5 36. Rd8
Rc4+ 37. Kg3 Bf5 38. Re8 axb4 39. axb4 e6 40. Nd7 {Dorawa,B (2001)-Bogdanovich,
G (2376) Jena 1999 0-1 (80)}) 11. Be3 {[%emt 0:08:50]} Rb8 {[%emt 0:05:31]} 12.
b3 {[%emt 0:01:46]} g6 {[%emt 0:02:34]} 13. Na4 {[%emt 0:15:26]} Bg7 {[%emt 0:
01:04]} 14. Rc1 {[%emt 0:00:27]} Bd4 {[%emt 0:07:34]} 15. Qd2 {[%emt 0:05:47]}
Qd5 {[%emt 0:00:42]} 16. Kf2 {[%emt 0:01:06]} O-O {[%emt 0:10:02]} 17. Rhe1 {
[%emt 0:01:05]} Rfe8 {[%emt 0:00:40]} 18. Rcd1 {[%emt 0:03:32]} Rbd8 {[%emt 0:
01:19]} 19. Qa5 {[%emt 0:04:42]} c4 {[%emt 0:04:00]} 20. Qxd5 {[%emt 0:04:40]}
Bxe3+ {[%emt 0:00:01]} 21. Kxe3 {[%emt 0:13:19]} cxd5 {[%emt 0:00:06] Mulhouse
Philidor won again, and we remain at the third place in the French League
going into the last round.} 1/2-1/2